Cogmind - Beta 15 @@@ ROGUE MODE // 2025.05.31 @ 20:28:29 Player: Kemowoomy Result: Destroyed by Y-54 Guardian with Gatling Laser Performance ------------- Evolutions (3) 1500 Regions Visited (6) 1200 Robots Destroyed (109) 545 Value Destroyed (2817) 2817 Prototype IDs (16) 320 Alien Tech Used (0) 0 Bonus (35) 35 TOTAL SCORE: 6417 Bonus ------- High Alert Combat Kills 35 Cogmind --------- Core Integrity 0/700 Matter 183/300 Energy 48/100 System Corruption 12% Temperature Warm (105) Movement Core (150) Ox2 Location -7/Storage Parts ------- > --- POWER (2) -------- (None) > --- PROPULSION (3) --- (None) > --- UTILITY (3) ------ (None) > --- WEAPON (5) ------- Improved Spread Laser Mini Assault Cannon > --- INVENTORY (5) ---- Light Treads Mini Assault Cannon Peak State ------------ > --- POWER ------------ Nuclear Core Improved Deuterium Engine > --- PROPULSION ------- Improved Carbon-fiber Leg Improved Carbon-fiber Leg Improved Carbon-fiber Leg > --- UTILITY ---------- Advanced Targeting Computer Hacking Suite Hacking Suite > --- WEAPON ----------- Shock Rifle Heavy Laser Minigun Gauss Rifle Advanced Assault Cannon > --- INVENTORY -------- Improved Deuterium Engine Mini Assault Cannon Grenade Launcher Mining Laser [Rating: 47] Favorites ----------- Power Light Nuclear Core Engine Cooled Ion Engine Power Core Light Nuclear Core Propulsion Aluminum Leg Leg Aluminum Leg Utility Improved Targeting Computer Device Disposable Heat Sink Storage Small Storage Unit Processor Improved Targeting Computer Hackware Hacking Suite Weapon Heavy Laser Energy Gun Heavy Laser Ballistic Gun Autogun Ballistic Cannon Light Cannon Launcher Grenade Launcher Special Weapon Mining Laser Build | -11 -10 -9 -9 -8 -7 -7 ------- Run | Yrd Mat Mat Min Mat Fac Sto Slots Evolved 6 | . . 2 . 2 2 . Power 1 | . . . . . 1 . Propulsion 1 | . . . . 1 . . Utility 1 | . . 1 . . . . Weapon 3 | . . 1 . 1 1 . Parts Attached 72 | 6 13 12 3 24 7 7 Power 13 | 1 1 3 . 6 2 . Engine 6 | 1 . 3 . 1 1 . Core 7 | . 1 . . 5 1 . Reactor . | . . . . . . . Propulsion 17 | 2 5 1 1 8 . . Treads . | . . . . . . . Leg 17 | 2 5 1 1 8 . . Wheel . | . . . . . . . Hover . | . . . . . . . Flight . | . . . . . . . Utility 14 | 1 3 3 . 3 2 2 Device 6 | . . 2 . 2 . 2 Storage 3 | 1 1 1 . . . . Processor 3 | . 2 . . . 1 . Hackware 2 | . . . . 1 1 . Protection . | . . . . . . . Artifact . | . . . . . . . Weapon 28 | 2 4 5 2 7 3 5 Energy Gun 11 | 2 . 3 . 4 1 1 Energy Cannon . | . . . . . . . Ballistic Gun 10 | . 3 . 1 3 1 2 Ballistic Cannon 4 | . . 2 . . 1 1 Launcher 1 | . . . 1 . . . Special Weapon 2 | . 1 . . . . 1 Impact Weapon . | . . . . . . . Slashing Weapon . | . . . . . . . Piercing Weapon . | . . . . . . . Special Melee Weapon . | . . . . . . . Unidentified Prototypes 3 | . . . . . . 3 Parts Lost 14 | . . 1 . 3 1 9 Power 2 | . . 1 . . . 1 Propulsion 2 | . . . . 1 . 1 Utility 3 | . . . . . 1 2 Weapon 7 | . . . . 2 . 5 Highest Loss Streak 8 | . . 1 . 1 1 8 To Critical Strikes . | . . . . . . . Average Backups 4 | 1 3 4 6 6 3 3 Power . | . . . . . . . Propulsion . | . . . . . . . Utility . | . 1 1 1 . . . Weapon 3 | . 1 2 5 5 3 2 Tool/Special . | . . . . . . . Unused Backups 12 | . 2 . . 3 3 4 Power 3 | . 1 . . 1 1 . Propulsion 3 | . . . . . 1 2 Utility 3 | . . . . 2 . 1 Weapon 3 | . 1 . . . 1 1 Tool/Special . | . . . . . . . Average Slot Usage (%) 93 | . 98 95 93 90 94 71 Engine 4 | . 3 4 11 1 4 5 Core 6 | . 10 6 . 6 7 5 Leg 23 | . 27 22 22 23 23 16 Device 5 | . . 7 11 8 . 6 Storage 6 | . 3 11 11 9 1 . Processor 13 | . 23 14 11 9 7 5 Hackware 2 | . . . . . 12 1 Energy Gun 10 | . 1 10 5 17 15 10 Ballistic Gun 14 | . 25 6 8 12 16 10 Ballistic Cannon 4 | . . 11 13 . 4 5 Peak Build Rating 47 | 6 12 18 16 37 47 47 Average Rating 21 | 4 10 14 14 25 41 32 On Entrance 17 | . 6 12 15 14 34 43 Naked Turns 38 | . . . . . . 38 Heaviest Build 40 | 12 21 23 23 30 37 40 Greatest Support 54 | 20 20 20 20 54 54 54 Greatest Overweight (x) 8 | . 1 1 1 8 . 3 Average Overweight (x) . | . . . . . . . Largest Inventory Capacity 10 | 8 10 8 8 8 8 5 Average Capacity 7 | 6 6 8 8 8 5 5 Most Carried 8 | 5 6 7 7 8 6 5 Average Carried 4 | 1 3 4 6 6 3 3 Final Capacity 8 | 8 5 8 8 8 5 5 Final Carried 7 | 1 3 7 7 5 3 2 Class Distribution -------------------- 35% | Mutant 27% | Scavenger-Gunner 25% | Gunner 10% | Hacker-Gunner Dominant Class ---------------- Mutant | -10/Materials Scavenger-Gunner | -9/Materials Mutant | -9/Mines Scavenger-Gunner | -8/Materials Hacker-Gunner | -7/Factory Gunner | -7/Storage Resources | -11 -10 -9 -9 -8 -7 -7 ----------- Run | Yrd Mat Mat Min Mat Fac Sto Matter Collected 2286 | 207 437 551 108 427 215 341 Remotely . | . . . . . . . Salvage Created 3947 | 73 451 685 133 1716 335 554 Parts 182 | . 29 35 8 79 12 19 Haulers Intercepted 7 | . 2 2 . 3 . . Recyclers Shooed 5 | . . 1 . 4 . . Parts Field Recycled . | . . . . . . . Retrieved Matter . | . . . . . . . Parts Self-Destructed . | . . . . . . . Prevented . | . . . . . . . Kills | -11 -10 -9 -9 -8 -7 -7 ------- Run | Yrd Mat Mat Min Mat Fac Sto Combat Hostiles Destroyed 80 | . 11 17 7 28 7 10 Melee 1 | . . . . . . 1 Guns 60 | . 11 6 2 28 6 7 Cannons 13 | . . 11 . . 1 1 AOE 6 | . . . 5 . . 1 Classes Destroyed 14 | 1 5 4 1 2 . 1 Worker 8 | . . 2 . 5 . 1 Builder 1 | . . . . 1 . . Hauler 7 | . 2 2 . 3 . . Recycler 6 | 1 . 1 . 2 1 1 Mechanic 1 | . . 1 . . . . Operator 4 | . 1 1 . 2 . . Watcher 2 | . 1 . . 1 . . Swarmer 30 | . 6 7 4 8 5 . Grunt 31 | . 5 5 2 14 . 5 Brawler 3 | . . . 1 1 1 . Duelist 4 | . . 2 . . . 2 Sentry 10 | . . 3 . 4 1 2 Hunter 1 | . . . . 1 . . Programmer 1 | . . . . . . 1 Best Kill Streak 9 | 1 6 7 7 9 3 7 Combat Bots Only 8 | . 6 5 7 8 3 3 Max Kills in Single Turn 4 | 1 1 2 4 3 1 1 Gunslinging 1 | . . . . 1 . . Exploded 4 | . . . 4 . . 1 Melee 1 | . . . . . . 1 Uniques/NPCs Destroyed . | . . . . . . . Combat | -11 -10 -9 -9 -8 -7 -7 -------- Run | Yrd Mat Mat Min Mat Fac Sto Hostile Shots Fired 359 | . 43 64 19 81 48 104 Missed 111 | . 6 20 4 24 21 36 Hits 248 | . 37 44 15 57 27 68 Melee 14 | . . 4 . . . 10 Projectile 234 | . 37 40 15 57 27 58 Critical Strikes 9 | . . 2 . 2 1 4 Damage Taken 3887 | . 379 574 154 739 576 1465 Core 979 | . 55 128 . 92 245 459 Absorbed by Shields . | . . . . . . . Core Remaining (%) 82 | 100 78 . 68 83 . . Volleys Fired 197 | 5 38 56 4 60 13 21 Largest 5 | 2 2 3 3 4 5 5 Hottest 230 | 100 46 146 116 230 212 212 Shots Fired 583 | 10 76 134 12 208 64 79 Gun 488 | 10 76 80 6 205 54 57 Cannon 88 | . . 54 4 3 10 17 Launcher 7 | . . . 2 . . 5 Special . | . . . . . . . Kinetic 344 | . 76 95 6 81 39 47 Thermal 191 | 10 . 31 4 117 12 17 Explosive 7 | . . . 2 . . 5 Electromagnetic 41 | . . 8 . 10 13 10 Robot Hit Streak 19 | 3 12 19 4 17 7 12 Robot Miss Streak 4 | 3 3 4 2 3 3 4 Penetration Max 1 | . . . . . 1 1 Secondary Targets 5 | . 1 . . 3 1 . Max Gunslinging Chain 1 | . 1 . . 1 1 . Shots Hit Robots 347 | 6 50 83 5 126 29 48 Core Hits 184 | 2 20 33 10 67 16 36 Critical Kills 2 | . . . . 1 . 1 Critical Parts Destroyed . | . . . . . . . Critical Strikes 15 | 1 . 8 . 2 1 3 Burn 9 | 1 . 6 . 1 1 . Destroy 2 | . . . . 1 . 1 Blast 4 | . . 2 . . . 2 Melee Attacks . | . . . . . . . Impact . | . . . . . . . Slashing . | . . . . . . . Piercing . | . . . . . . . Sneak Attacks . | . . . . . . . Combat Hostiles . | . . . . . . . Follow-up Attacks . | . . . . . . . Damage Inflicted 7107 | 76 778 1418 337 2632 635 1231 Guns 5470 | 76 762 846 58 2400 544 784 Cannons 846 | . . 511 . 22 81 232 Explosions 685 | . . 39 276 168 . 202 Melee . | . . . . . . . Ramming 106 | . 16 22 3 42 10 13 Kinetic 3347 | . 762 953 30 524 376 702 Thermal 2745 | 76 . 328 28 1900 153 260 Explosive 427 | . . . 276 . . 151 Electromagnetic 482 | . . 115 . 166 96 105 Impact . | . . . . . . . Slashing . | . . . . . . . Piercing . | . . . . . . . Highest Corruption 12 | . . . . . 1 12 Average Corruption 3 | . . . . . 1 4 Corruption Purged . | . . . . . . . Corruption Blocked . | . . . . . . . Effects 4 | . . . . . . 4 Message Errors 3 | . . . . . . 3 Heat Flow Errors 1 | . . . . . . 1 Overload Shots . | . . . . . . . Overflow Damage 31 | . . . 27 4 . . Projectiles . | . . . . . . . Explosions 27 | . . . 27 . . . Melee 4 | . . . . 4 . . Knockbacks 5 | . . 1 . 2 . 2 Impact 1 | . . . . 1 . . Kinetic 4 | . . 1 . 1 . 2 Secondary . | . . . . . . . Self-Inflicted Damage 177 | . 3 12 5 12 . 145 Shots 6 | . . 1 1 1 . 3 Rammed 2 | . . . . . . 2 Targets Rammed 18 | . 3 3 1 8 1 2 Kicked 16 | . 3 3 1 8 1 . Crushed . | . . . . . . . Highest Temperature 543 | 195 66 196 102 380 543 224 Average Temperature 90 | 97 17 61 52 104 180 78 Received Heat Transfer 759 | . 117 96 48 279 57 162 Effects 10 | . . . . 3 7 . Shutdowns 4 | . . . . 1 3 . Interference 2 | . . . . . 2 . Short Circuit 2 | . . . . 2 . . Damage (core) 2 | . . . . . 2 . Siege Activations . | . . . . . . . Martial Activations . | . . . . . . . Shielding Activations . | . . . . . . . Robots Disrupted . | . . . . . . . Combat Hostiles . | . . . . . . . Robots Corrupted . | . . . . . . . Combat Hostiles . | . . . . . . . Parts Fried 1 | . . 1 . . . . Impact Corruptions 1 | . . . . 1 . . Robots Melted . | . . . . . . . Combat Hostiles . | . . . . . . . Parts Melted 9 | . . 4 . 5 . . Heat Transferred 5892 | 296 . 1234 74 3554 370 364 Parts Sabotaged . | . . . . . . . Parts Stolen . | . . . . . . . Parts Stripped . | . . . . . . . Power Chain Reactions 4 | . . 1 . 2 . 1 Alert | -11 -10 -9 -9 -8 -7 -7 ------- Run | Yrd Mat Mat Min Mat Fac Sto Maximum Alert Level 2 | . . 1 1 2 . 1 Low Security (%) 78 | 100 100 56 99 56 100 98 Level 1 17 | . . 43 . 29 . 1 Level 2 3 | . . . . 14 . . Level 3 . | . . . . . . . Level 4 . | . . . . . . . Level 5 . | . . . . . . . High Security . | . . . . . . . Max Security . | . . . . . . . Peak Influence 441 | 5 153 296 200 441 102 224 Initial 102 | . . . 102 24 102 31 Average 108 | . 31 123 109 213 29 97 Influence Increases 2544 | 5 331 554 168 861 232 393 Destroy 0b10 Robot/C 1600 | . 220 340 140 560 140 200 Destroy 0b10 Robot/NC 145 | 5 20 35 . 70 5 10 Destroy Leader 338 | . 46 74 20 118 30 50 Successful Hack 60 | . 27 7 . 5 21 . Disable Machine 30 | . . . . . 15 15 Destroy Structure 71 | . 3 8 8 18 6 28 Partial Spotted 15 | . . . . . . 15 Lose Combat Pursuer 285 | . 15 90 . 90 15 75 Influence Decreases 2330 | 5 331 292 366 700 386 250 Entered New Map 363 | . . . 160 40 123 40 Time Decay 1563 | 5 217 282 206 480 253 120 Lost Part 140 | . . 10 . 30 10 90 Purge Threat 264 | . 114 . . 150 . . Squads Dispatched 14 | . 1 2 . 4 2 5 Investigation 2 | . 1 . . . . 1 Extermination 1 | . . . . . 1 . Reinforcement 9 | . . 2 . 4 1 2 Assault . | . . . . . . . Garrison 2 | . . . . . . 2 Intercept . | . . . . . . . Searches Triggered . | . . . . . . . Construction Impeded . | . . . . . . . Haulers Reinforced 1 | . . . . . . 1 Active Scanning Responses . | . . . . . . . Cargo Convoy Interrupts . | . . . . . . . Stealth | -11 -10 -9 -9 -8 -7 -7 --------- Run | Yrd Mat Mat Min Mat Fac Sto Distress Signals 12 | . 2 4 . 2 2 2 Communications Jammed . | . . . . . . . Distress Signals . | . . . . . . . Times Spotted 143 | . 23 33 7 42 15 23 Peak Tracking Total 9 | . 5 7 6 7 5 9 Tactical Retreats 8 | . 1 2 . 3 1 1 Traps | -11 -10 -9 -9 -8 -7 -7 ------- Run | Yrd Mat Mat Min Mat Fac Sto Traps Triggered 7 | . 1 2 . 3 . 1 Indirectly . | . . . . . . . Trap Hack Attempts . | . . . . . . . Triggered . | . . . . . . . Disarmed . | . . . . . . . Reprogrammed . | . . . . . . . Reused . | . . . . . . . Traps Extracted . | . . . . . . . Installed . | . . . . . . . Triggered . | . . . . . . . Machines | -11 -10 -9 -9 -8 -7 -7 ---------- Run | Yrd Mat Mat Min Mat Fac Sto Machines Disabled 2 | . . . . . 1 1 Max in Single Turn 1 | . . . . . 1 1 Machines Repaired . | . . . . . . . Machines Dismantled . | . . . . . . . Machines Sabotaged . | . . . . . . . Overloaded Fab Kills . | . . . . . . . Hacking | -11 -10 -9 -9 -8 -7 -7 --------- Run | Yrd Mat Mat Min Mat Fac Sto Machines Accessed 23 | . 8 4 . 3 5 3 Terminals 21 | . 8 3 . 3 4 3 Fabricators 1 | . . . . . 1 . Repair Stations . | . . . . . . . Recycling Units 1 | . . 1 . . . . Scanalyzers . | . . . . . . . Garrison Access . | . . . . . . . Total Hacks 64 | . 26 11 . 13 8 6 Successful 21 | . 11 4 . 3 3 . Failed 43 | . 15 7 . 10 5 6 Catastrophic 10 | . 3 3 . 1 . 3 Database Lockouts . | . . . . . . . Manual 27 | . 14 3 . 9 1 . Terminals 61 | . 26 9 . 13 7 6 Fabricators 1 | . . . . . 1 . Repair Stations . | . . . . . . . Recycling Units 2 | . . 2 . . . . Scanalyzers . | . . . . . . . Garrison Access . | . . . . . . . Terminal Hacks 19 | . 11 2 . 3 3 . Record 1 | . . 1 . . . . Robot Analysis 2 | . 2 . . . . . Prototype ID Bank 10 | . 7 . . 1 2 . Open DSF 1 | . . . . . 1 . Alert Level 2 | . 1 . . 1 . . Unreport Threat 2 | . 1 . . 1 . . Recall Investigation 1 | . . 1 . . . . Fabricator Hacks . | . . . . . . . Repair Station Hacks . | . . . . . . . Recycling Unit Hacks 2 | . . 2 . . . . Process 1 | . . 1 . . . . Retrieve Matter 1 | . . 1 . . . . Scanalyzer . | . . . . . . . Garrison Access Hacks . | . . . . . . . Unauthorized Hacks . | . . . . . . . Terminals . | . . . . . . . Fabricators . | . . . . . . . Repair Stations . | . . . . . . . Recycling Units . | . . . . . . . Scanalyzers . | . . . . . . . Garrison Access . | . . . . . . . Data Cores Recovered 1 | . 1 . . . . . Used . | . . . . . . . Hacking Detections 21 | . 8 3 . 3 4 3 Full Trace Events 1 | . . . . . . 1 Feedback Events . | . . . . . . . Feedback Blocked . | . . . . . . . Robot Schematics Acquired . | . . . . . . . Robots Built . | . . . . . . . Authchips . | . . . . . . . Time . | . . . . . . . Total Robot Build Rating . | . . . . . . . Part Schematics Acquired . | . . . . . . . Parts Built . | . . . . . . . Authchips . | . . . . . . . Time . | . . . . . . . Total Part Build Rating . | . . . . . . . Parts Repaired . | . . . . . . . Time . | . . . . . . . Parts Recycled . | . . . . . . . Recycled Matter 19 | . . 19 . . . . Retrieved Matter 19 | . . 19 . . . . Retrieved Components . | . . . . . . . Parts Scanalyzed . | . . . . . . . Part Schematics Acquired . | . . . . . . . Parts Damaged . | . . . . . . . Bothacking | -11 -10 -9 -9 -8 -7 -7 ------------ Run | Yrd Mat Mat Min Mat Fac Sto Used RIF Installer . | . . . . . . . Robots Hacked . | . . . . . . . Non-combat . | . . . . . . . Combat . | . . . . . . . Robot Hacks Applied . | . . . . . . . Relay Couplers Released . | . . . . . . . Fabnet Peak Effective % . | . . . . . . . Robots Rewired . | . . . . . . . Allies Hacked . | . . . . . . . Hacks Repelled . | . . . . . . . Allies | -11 -10 -9 -9 -8 -7 -7 -------- Run | Yrd Mat Mat Min Mat Fac Sto Total Allies . | . . . . . . . Largest Group . | . . . . . . . Highest-Rated Group . | . . . . . . . Highest-Rated Ally . | . . . . . . . Total Orders . | . . . . . . . Ally Attacks . | . . . . . . . Total Damage . | . . . . . . . Kills . | . . . . . . . Allies Corrupted . | . . . . . . . Allies Melted . | . . . . . . . Intel | -11 -10 -9 -9 -8 -7 -7 ------- Run | Yrd Mat Mat Min Mat Fac Sto Active Infowar (turns) . | . . . . . . . Robot Analysis Total 2 | . 2 . . . . . Derelict Logs Recovered 1 | . . . 1 . . . Drone Launches . | . . . . . . . Drone Recoveries . | . . . . . . . Exploration | -11 -10 -9 -9 -8 -7 -7 ------------- Run | Yrd Mat Mat Min Mat Fac Sto Turns Passed 4764 | 67 1042 1007 428 1265 700 255 Spaces Moved 2706 | 35 690 500 275 586 467 153 Core 96 | 13 . . . 4 . 79 Treads . | . . . . . . . Legs 2610 | 22 690 500 275 582 467 74 Wheels . | . . . . . . . Hover . | . . . . . . . Flight . | . . . . . . . Fastest Speed 50 | 50 120 120 120 120 120 50 Average Speed 126 | 94 120 139 141 135 120 84 Slowest Speed 450 | 120 190 190 190 450 120 200 Overloaded Moves . | . . . . . . . Propulsion Burnouts . | . . . . . . . Robots Hopped . | . . . . . . . Potential Cave-ins . | . . . . . . . Cave-ins Triggered 1 | . . . . . . 1 Exploration Rate (%) 45 | 3 95 44 68 62 14 35 Regions Visited 6 Branch Regions 2 Pre-discovered Areas 1 | . . . 1 . . . Known Exits Taken 2 | . 1 1 . . . . Unknown Exits Taken 4 | 1 . . 1 1 1 . Scrap Searched 1 | . . . 1 . . . Spaces Dug . | . . . . . . . Terrain Destroyed 59 | . . 6 9 10 2 32 Melee . | . . . . . . . Projectile 10 | . . . . . 2 8 AOE 49 | . . 6 9 10 . 24 Terrain Rammed 2 | . 1 . . . . 1 Walls Destroyed . | . . . . . . . Machines Disabled . | . . . . . . . Actions | -11 -10 -9 -9 -8 -7 -7 --------- Run | Yrd Mat Mat Min Mat Fac Sto Total 3660 | 59 846 711 306 928 575 235 Wait 471 | 7 61 109 16 170 72 36 Move 2700 | 34 689 499 274 585 466 153 Hop . | . . . . . . . Pick Up 96 | 7 18 16 2 36 8 9 Fast Attach . | . . . . . . . Attach 64 | 6 8 12 1 26 3 8 Detach 26 | . 6 6 2 9 1 2 Swap 27 | . 7 5 3 8 4 . Drop 59 | . 15 5 3 26 7 3 Fire 197 | 5 38 56 4 60 13 21 Melee . | . . . . . . . Ram 4 | . 1 . . . . 3 Kick 16 | . 3 3 1 8 1 . Crush . | . . . . . . . Escape Stasis . | . . . . . . . Rewire . | . . . . . . . Trap . | . . . . . . . Miscellaneous . | . . . . . . . Route ------- -11/Scrapyard -10/Materials (discovered 4 exits: *Mat x3 / [*Min]) -9/Materials (discovered 3 exits: *Mat / *Min x2) -9/Mines (discovered 2 exits: *Mat x2) -8/Materials -7/Factory -7/Storage History --------- Turn | Location | Event 5 | -11/Scrapyard | Discovered new exit (range 15) 68 | -11/Scrapyard | Entered Materials 236 | -10/Materials | Discovered new exit (range 16) 306 | -10/Materials | Build established: Mutant 456 | -10/Materials | Discovered new exit (range 11) 665 | -10/Materials | Discovered new exit (range 11) 676 | -10/Materials | Identified exit to Materials 986 | -10/Materials | Discovered exit to Materials (range 15) 1110 | -10/Materials | Entered another Materials area 1110 | -9/Materials | Evolved 2 slots: Utility x1, Weapon x1 1367 | -9/Materials | Discovered new exit (range 8) 1375 | -9/Materials | Identified exit to Mines 1693 | -9/Materials | Build established: Scavenger-Gunner 1874 | -9/Materials | Discovered new exit (range 10) 2037 | -9/Materials | Discovered exit to Mines (range 7) 2088 | -9/Materials | Build established: Gunner 2117 | -9/Materials | Entered Mines 2244 | -9/Mines | Received a Rocket Launcher from a helpful Derelict 2294 | -9/Mines | Destroyed 7 combat bots 2350 | -9/Mines | Discovered new exit (range 9) 2447 | -9/Mines | Learned location of Storage (-7) 2537 | -9/Mines | Discovered new exit (range 5) 2545 | -9/Mines | Entered Materials 2545 | -8/Materials | Evolved 2 slots: Propulsion x1, Weapon x1 3095 | -8/Materials | Build established: Scavenger-Gunner 3324 | -8/Materials | Destroyed 8 combat bots 3725 | -8/Materials | Discovered new exit (range 12) 3810 | -8/Materials | Entered Factory 3810 | -7/Factory | Evolved 2 slots: Power x1, Weapon x1 3826 | -7/Factory | Build established: Gunner 4277 | -7/Factory | Build established: Hacker-Gunner 4441 | -7/Factory | Discovered new exit (range 5) 4510 | -7/Factory | Entered Storage 4650 | -7/Storage | Garrison activated, responded to threat 4695 | -7/Storage | Crushed by falling debris 4695 | -7/Storage | Core integrity fell below 50% 4695 | -7/Storage | System corruption reached 10% 4696 | -7/Storage | Released all parts (5) 4726 | -7/Storage | Lost 8 parts (1p1n2u4w) 4758 | -7/Storage | Core integrity fell below 20% 4765 | -7/Storage | Destroyed by Y-54 Guardian with Gatling Laser Last Messages --------------- 04722_ Mining Laser broken. 04722_ Destabilizing: Short circuit. 04722_ Destabilizing: Core damaged (-28). 04727_ Dropped Broken Mining Laser. 04728_ T<#WW0KGABMZSWRPWJHEP2JNH,G0OY4K 04749_ Acquired Prototype Energy Gun. 04750_ Acquired Prototype Ballistic Gun. 04751_ Identified Enh. Autogun. 04752_ Identified Imp. Spread Laser. 04755_ Acquired Prototype Ballistic Cannon. 04756_ Identified Mni. Assault Cannon. 04757_ G-47 Trooper destroyed. 04757_ L-41 Fighter knocked back. 04760_ Enh. Autogun severed. 04760_ L-41 Fighter destroyed. 04762_ Grenade Launcher destroyed. 04764_ Penetrated by Slug. 04765_ VILRSUY0INM14FCRWO29F OD#DSYV3 Map ----- +----------------------------------------------------+ | ???????????????????????????????? | | ???????????????????????????????? | | ???????????????????????????????? | | ???????????????????????????????? | | ???????????????????????????????? | | ???????????????????????????????? | | ???????????????????????????????? | | ???????????????????????????????? | | ???????????????????????????????? | | ???????????????????????????????? | | ???????????????????????????????? | | ???????????????????????????????? | | ???????????????????????????????? | | ???????????????????????????????? | | ???????????????????????????????? | | ???????????????????????????????? | | ???????????????????????????????? | | ???????????????????????????????? | | ???????????????????????????????? | | ???????????????????????????????? | | ???????????????????????????????? | | ????##########+#???##??????????? | | ????# | + ### ######?????? | | ????# "" "" # # T" """""#?????? | | ????# *=[[" "#""T""####### | | ????# @%%Y" | | ????# b " h | | ????# g | | ????# ############ | | ????# ## # ##??????????? | | ????# ### #?????????????? | | ????#####+###;# ?????????????? | | ?????????????^ ?????????????? | | ??????????????# #????????????? | | ??????????????#####????????????? | | ???????????????????????????????? | | ???????????????????????????????? | | ???????????????????????????????? | | ???????????????????????????????? | | ???????????????????????????????? | | ???????????????????????????????? | | ???????????????????????????????? | | ???????????????????????????????? | | ???????????????????????????????? | | ???????????????????????????????? | | ???????????????????????????????? | | ???????????????????????????????? | | ???????????????????????????????? | | ???????????????????????????????? | | ???????????????????????????????? | +----------------------------------------------------+ Best States ------------- Heat Dissipation 62 Coolant Potential 50 Energy Generation 25 Energy Capacity 430 Matter Stores 300 Matter Capacity 300 Sight Range 16 Terrain Scan Density 10 Evasion (%) 55 Targeting Accuracy 8 Offensive Hacking 20 Item Schematics ----------------- None Robot Schematics ------------------ None Fabricated ------------ Nothing Repaired ---------- Nothing Alien Tech Used ----------------- None Achievements -------------- None Challenges ------------ None Game ------ Seed ShockAluminumGravjet Manual? 0 Play Time 00:57:10 Cumulative 29.1 hours Start 2025.05.31 @ 02:32:36 End 2025.05.31 @ 20:28:29 Sessions 3 Manual Loads 0 Difficulty Rogue Special Mode None Game No. 44 Rogue 42 Adventurer 2 Explorer 0 Win Type - Total 0 Types 0/0/0/0/0/0/0/0/0/0 Lore% 13 Gallery% 23 Achievement% 22 Wizard Run 0 Options --------- Layout 0 ASCII 1 Keyboard 1 Movement Numpad Keybinds 0 Fullscreen 2 Font 18/Terminus Map View 112x50 Zoom Use 0% Tactical HUD 1 Map Filters NONE Filters NONE Steam 1 RUN: cdeb3400-6eb6-4aa9-a873-23d397e17560